fUST/lending_fUST_20250214
["ID","MTS","AMOUNT","RATE_DAILY","PERIOD"]
[352999280,1739482240583,-500.0,0.00014191,2]
[352999281,1739482240592,-500.0,0.00014191,2]
[352999283,1739482240601,-929.72,0.00014191,2]
[352999285,1739482240611,-500.0,0.00014191,2]
[352999287,1739482240619,-500.0,0.00014191,2]
[352999289,1739482240628,-6355.23,0.00014191,2]
[352999291,1739482240638,-500.0,0.00014191,2]
[352999293,1739482240647,-500.0,0.00014191,2]
[352999295,1739482240656,-820.15,0.00014191,2]
[352999297,1739482240666,-537.62,0.00014191,2]
[352999299,1739482240675,-500.0,0.00014191,2]
[352999301,1739482240684,-327.83496302,0.00014191,2]
[352999303,1739482240694,-3477.81,0.00014191,2]
[352999305,1739482240703,-500.0,0.00014191,2]
[352999307,1739482240712,-1014.59,0.00014191,2]
[352999309,1739482240722,-500.0,0.00014191,2]
[352999311,1739482240731,-593.04,0.00014191,2]
[352999313,1739482240741,-301.76332322,0.00014191,2]
[352999314,1739482240750,-500.0,0.00014191,2]
[352999315,1739482240760,-500.0,0.00014191,2]
[352999316,1739482240769,-639.3,0.00014191,2]
[352999317,1739482240779,-664.74,0.00014191,2]
[352999318,1739482240789,-500.0,0.00014191,2]
[352999319,1739482240800,-1028.39,0.00014191,2]
[352999320,1739482240810,-500.0,0.00014191,2]
[352999321,1739482240821,-500.0,0.00014191,2]
[352999322,1739482240833,-1193.23,0.00014191,2]
[352999323,1739482240842,-671.55,0.00014191,2]
[352999324,1739482240852,-531.33,0.00014191,2]
[352999325,1739482240862,-500.0,0.00014191,2]
[352999326,1739482240871,-500.0,0.00014273,2]
[352999327,1739482240882,-500.0,0.00014273,2]
[352999328,1739482240892,-500.0,0.00014273,2]
[352999329,1739482240902,-500.0,0.00014273,2]
[352999330,1739482240911,-929.72,0.00014273,2]
[352999331,1739482240921,-500.0,0.00014273,2]
[352999332,1739482240930,-500.0,0.00014273,2]
[352999333,1739482240939,-6355.23,0.00014273,2]
[352999334,1739482240949,-500.0,0.00014273,2]
[352999335,1739482240958,-500.0,0.00014273,2]
[352999336,1739482240967,-820.15,0.00014273,2]
[352999337,1739482240978,-537.62,0.00014273,2]
[352999338,1739482240987,-500.0,0.00014273,2]
[352999339,1739482240998,-3477.81,0.00014273,2]
[352999340,1739482241007,-500.0,0.00014273,2]
[352999341,1739482241017,-1014.59,0.00014273,2]
[352999342,1739482241026,-500.0,0.00014273,2]
[352999343,1739482241036,-593.04,0.00014273,2]
[352999344,1739482241047,-500.0,0.00014273,2]
[352999345,1739482241057,-500.0,0.00014273,2]
[352999346,1739482241066,-639.3,0.00014273,2]
[352999347,1739482241075,-664.74,0.00014273,2]
[352999348,1739482241084,-500.0,0.00014273,2]
[352999349,1739482241094,-1028.39,0.00014273,2]
[352999350,1739482241104,-500.0,0.00014273,2]
[352999351,1739482241113,-500.0,0.00014273,2]
[352999352,1739482241123,-1193.23,0.00014273,2]
[352999353,1739482241131,-671.55,0.00014273,2]
[352999354,1739482241141,-531.33,0.00014273,2]
[352999355,1739482241151,-500.0,0.00014273,2]
[352999356,1739482241161,-306.01026196,0.0001428,2]
[352999357,1739482241170,-594.6161426,0.00014346,2]
[352999358,1739482241180,-620.70728246,0.00014356,2]
[352999359,1739482241189,-500.0,0.00014356,2]
[352999360,1739482241200,-500.0,0.00014356,2]
[352999361,1739482241210,-214.99286943,0.00014356,2]
[352999362,1739482241219,-929.72,0.00014356,2]
[352999363,1739482241229,-500.0,0.00014356,2]
[352999364,1739482241238,-500.0,0.00014356,2]
[352999365,1739482241248,-6355.23,0.00014356,2]
[352999366,1739482241258,-500.0,0.00014356,2]
[352999367,1739482241268,-500.0,0.00014356,2]
[352999368,1739482241277,-820.15,0.00014356,2]
[352999369,1739482241287,-537.62,0.00014356,2]
[352999370,1739482241296,-500.0,0.00014356,2]
[352999371,1739482241306,-3477.81,0.00014356,2]
[352999372,1739482241315,-500.0,0.00014356,2]
[352999373,1739482241325,-1014.59,0.00014356,2]
[352999374,1739482241334,-500.0,0.00014356,2]
[352999375,1739482241345,-593.04,0.00014356,2]
[352999376,1739482241355,-500.0,0.00014356,2]
[352999377,1739482241364,-210.03335942,0.00014356,2]
[352999378,1739482241374,-639.3,0.00014356,2]
[352999379,1739482241384,-664.74,0.00014356,2]
[352999380,1739482241393,-500.0,0.00014356,2]
[352999381,1739482241403,-1028.39,0.00014356,2]
[352999382,1739482241412,-500.0,0.00014356,2]
[352999383,1739482241423,-500.0,0.00014356,2]
[352999384,1739482241433,-1193.23,0.00014356,2]
[352999386,1739482241443,-531.33,0.00014356,2]
[352999388,1739482241452,-671.55,0.00014356,2]
[352999390,1739482241462,-500.0,0.00014356,2]
[352999392,1739482241471,-1100.0,0.00014363,2]
[352999394,1739482241481,-420.9128023,0.00014399,2]
[352999396,1739482241490,-500.0,0.00014399,2]
[352999398,1739482241500,-500.0,0.00014399,2]
[352999399,1739482241509,-500.0,0.00014399,2]
[352999401,1739482241519,-500.0,0.00014399,2]
[352999404,1739482241528,-541.14648582,0.00014399,2]
[352999406,1739482241539,-500.0,0.00014399,2]
[352999408,1739482241548,-14590.02708121,0.000144,5]
[352999410,1739482241557,-306.01026196,0.000144,2]
[352999412,1739482241566,-120574.88653106,0.000144,5]
[352999414,1739482241580,-41223.87618069,0.000144,5]
[352999427,1739482241687,-683.62,0.0001378,2]
[352999428,1739482241696,-683.62,0.00013863,2]
[352999431,1739482241706,-2295.22,0.00013945,2]
[352999433,1739482241715,-683.62,0.00013945,2]
[352999435,1739482241725,-13268.202478,0.00013981,2]
[352999437,1739482241735,-2295.22,0.00014027,2]
[352999438,1739482241744,-683.62,0.00014027,2]
[352999440,1739482241753,-2295.22,0.00014109,2]
[352999442,1739482241763,-683.62,0.00014109,2]
[352999444,1739482241772,-2295.22,0.00014191,2]
[352999446,1739482241781,-683.62,0.00014191,2]
[352999448,1739482241790,-2295.22,0.00014273,2]
[352999450,1739482241800,-683.62,0.00014273,2]
[352999452,1739482241809,-2295.22,0.00014356,2]
[352999454,1739482241820,-683.62,0.00014356,2]
[352999456,1739482241837,-143225.97407262,0.000144,5]
[352999552,1739482243599,-500.0,0.00013698,2]
[352999555,1739482243609,-9580.59840914,0.000144,5]
[352999558,1739482243622,-1308.82834252,0.000144,5]
[352999561,1739482243634,-356275.94549785,0.000144,5]
[352999567,1739482243655,-7956.0758692,0.000144,5]
[352999570,1739482243667,-8669.34768305,0.000144,5]
[352999573,1739482243679,-5054.0871927,0.000144,5]
[352999576,1739482243691,-1802.4249918,0.000144,5]
[352999581,1739482243731,-153.52826407,0.000144,5]
[352999584,1739482243747,-9501.42664049,0.000144,5]
[352999609,1739482246550,-1292.4268219,0.000144,5]
[352999624,1739483358139,-199.41598815,0.00010564,2]
[352999688,1739483431956,-374.86910018,0.0001031,2]
[352999767,1739483437735,-500.0,0.0001031,2]
[352999768,1739483437747,-272.08,0.0001031,2]
[352999769,1739483437759,-1099.91555846,0.0001031,2]
[352999770,1739483437768,-300.0,0.00010414,2]
[352999771,1739483437778,-24900.0,0.00010415,2]
[352999772,1739483437787,-380.0,0.00010685,2]
[352999773,1739483437796,-381.26528861,0.000109,2]
[352999774,1739483437806,-500.0,0.00010999,2]
[352999775,1739483437815,-500.0,0.00010999,2]
[352999776,1739483437825,-500.0,0.00010999,2]
[352999777,1739483437835,-500.0,0.00010999,2]
[352999778,1739483437844,-500.0,0.00010999,2]
[352999779,1739483437853,-500.0,0.00010999,2]
[352999780,1739483437863,-500.0,0.00010999,2]
[352999781,1739483437872,-300.0,0.00010999,2]
[352999782,1739483437881,-500.0,0.00010999,2]
[352999783,1739483437890,-299.68406514,0.00010999,2]
[352999784,1739483437899,-500.0,0.00010999,2]
[352999786,1739483437908,-500.0,0.00010999,2]
[352999788,1739483437916,-500.0,0.00010999,2]
[352999791,1739483437925,-500.0,0.00010999,2]
[352999794,1739483437934,-500.0,0.00010999,2]
[352999797,1739483437943,-500.0,0.00010999,2]
[352999800,1739483437952,-500.0,0.00010999,2]
[352999802,1739483437961,-248187.05454411,0.00011,2]
[352999805,1739483437971,-1000.0,0.00011,2]
[352999806,1739483437980,-420.0,0.0001145,2]
[352999808,1739483437989,-381.26528861,0.00011575,2]
[352999809,1739483437999,-1200.0,0.00011897,2]
[352999810,1739483438008,-381.26528861,0.00012249,2]
[352999811,1739483438018,-587.0,0.0001259,2]
[352999812,1739483438028,-1000.0,0.00012738,2]
[352999813,1739483438037,-1000.0,0.00012806,2]
[352999814,1739483438047,-267.3468161,0.00012806,2]
[352999815,1739483438056,-165.76681782,0.00012813,5]
[352999816,1739483438066,-381.26528861,0.00012924,2]
[352999817,1739483438075,-2000.000001,0.00013,2]
[352999818,1739483438085,-1200.0,0.00013267,2]
[352999819,1739483438094,-381.26528861,0.00013598,2]
[352999820,1739483438103,-151.7135212,0.00013673,2]
[352999821,1739483438113,-626.5698731,0.00013673,2]
[352999822,1739483438122,-420.9128023,0.00013697,2]
[352999823,1739483438131,-500.0,0.00013697,2]
[352999824,1739483438140,-374.70746748,0.00013697,2]
[352999825,1739483438149,-500.0,0.00013697,2]
[352999826,1739483438158,-500.0,0.00013697,2]
[352999827,1739483438167,-500.0,0.00013697,2]
[352999828,1739483438178,-500.0,0.00013697,2]
[352999829,1739483438188,-500.0,0.00013697,2]
[352999830,1739483438198,-500.0,0.00013698,2]
[352999831,1739483438211,-431.3297498,0.00013698,2]
[352999832,1739483438220,-500.0,0.00013698,2]
[352999833,1739483438230,-500.0,0.00013698,2]
[352999834,1739483438239,-517.99895411,0.00013698,2]
[352999835,1739483438250,-500.0,0.00013698,2]
[352999836,1739483438259,-500.0,0.00013698,2]
[352999837,1739483438269,-500.0,0.00013698,2]
[352999838,1739483438282,-500.0,0.00013698,2]
[352999839,1739483438292,-500.6529492,0.00013698,2]
[352999840,1739483438302,-500.0,0.00013698,2]
[352999841,1739483438312,-500.0,0.00013698,2]
[352999842,1739483438322,-500.0,0.00013698,2]
[352999843,1739483438332,-500.0,0.00013698,2]
[352999844,1739483438341,-500.0,0.00013698,2]
[352999845,1739483438351,-500.0,0.00013698,2]
[352999846,1739483438361,-500.0,0.00013698,2]
[352999847,1739483438371,-500.0,0.00013698,2]
[352999848,1739483438381,-500.0,0.00013698,2]
[352999849,1739483438391,-500.0,0.00013698,2]
[352999850,1739483438401,-500.0,0.00013698,2]
[352999851,1739483438411,-500.0,0.00013698,2]
[352999852,1739483438421,-500.0,0.00013698,2]
[352999853,1739483438430,-500.0,0.00013698,2]
[352999854,1739483438439,-500.0,0.00013698,2]
[352999855,1739483438449,-500.0,0.00013698,2]
[352999856,1739483438458,-500.0,0.00013698,2]
[352999857,1739483438467,-500.0,0.00013698,2]
[352999858,1739483438476,-500.0,0.00013698,2]
[352999859,1739483438485,-500.0,0.00013698,2]
[352999860,1739483438494,-500.0,0.00013698,2]
[352999861,1739483438504,-500.0,0.00013698,2]
[352999862,1739483438513,-500.0,0.00013698,2]
[352999863,1739483438524,-500.0,0.00013698,2]
[352999864,1739483438533,-500.0,0.00013698,2]
[352999865,1739483438542,-500.0,0.00013698,2]
[352999866,1739483438552,-500.0,0.00013698,2]
[352999867,1739483438561,-500.0,0.00013698,2]
[352999868,1739483438570,-500.0,0.00013698,2]
[352999869,1739483438579,-500.0,0.00013698,2]
[352999870,1739483438589,-500.0,0.00013698,2]
[352999871,1739483438598,-500.0,0.00013698,2]
[352999872,1739483438608,-500.0,0.00013698,2]
[352999873,1739483438617,-500.0,0.00013698,2]
[352999874,1739483438627,-500.0,0.00013698,2]
[352999875,1739483438637,-500.0,0.00013698,2]
[352999876,1739483438648,-500.0,0.00013698,2]
[352999877,1739483438657,-500.62051789,0.00013698,2]
[352999878,1739483438667,-508.88796431,0.00013698,2]
[352999879,1739483438677,-613.33913967,0.00013698,2]
[352999880,1739483438686,-500.0,0.00013698,2]
[352999881,1739483438696,-500.0,0.00013698,2]
[352999882,1739483438706,-500.0,0.00013698,2]
[352999883,1739483438715,-500.0,0.00013698,2]
[352999884,1739483438724,-500.0,0.00013698,2]
[352999885,1739483438734,-500.0,0.00013698,2]
[352999886,1739483438744,-500.0,0.00013698,2]
[352999887,1739483438753,-500.0,0.00013698,2]
[352999888,1739483438763,-500.0,0.00013698,2]
[352999889,1739483438773,-500.0,0.00013698,2]
[352999890,1739483438783,-500.0,0.00013698,2]
[352999891,1739483438792,-500.0,0.00013698,2]
[352999892,1739483438802,-500.0,0.00013698,2]
[352999893,1739483438811,-500.0,0.00013698,2]
[352999894,1739483438820,-500.0,0.00013698,2]
[352999895,1739483438830,-500.0,0.00013698,2]
[352999896,1739483438839,-500.0,0.00013698,2]
[352999897,1739483438848,-500.0,0.00013698,2]
[352999898,1739483438858,-500.0,0.00013698,2]
[352999899,1739483438867,-500.0,0.00013698,2]
[352999900,1739483438877,-500.0,0.00013698,2]
[352999901,1739483438887,-500.0,0.00013698,2]
[352999902,1739483438896,-500.0,0.00013698,2]
[352999903,1739483438905,-500.0,0.00013698,2]
[352999904,1739483438914,-367.73682754,0.00013698,2]
[352999905,1739483438924,-500.0,0.00013698,2]
[352999906,1739483438934,-500.0,0.00013698,2]
[352999907,1739483438943,-500.0,0.00013698,2]
[352999908,1739483438953,-500.0,0.00013698,2]
[352999909,1739483438962,-500.0,0.00013698,2]
[352999910,1739483438971,-500.0,0.00013698,2]
[352999911,1739483438982,-500.0,0.00013698,2]
[352999912,1739483438991,-500.0,0.00013698,2]
[352999913,1739483439001,-502.42163637,0.00013698,2]
[352999914,1739483439144,-500.0,0.00013698,2]
[352999915,1739483439156,-500.0,0.00013698,2]
[352999916,1739483439166,-500.0,0.00013698,2]
[352999917,1739483439175,-500.0,0.00013698,2]
[352999918,1739483439184,-500.0,0.00013698,2]
[352999919,1739483439194,-503.36946444,0.00013698,2]
[352999920,1739483439206,-500.0,0.00013698,2]
[352999921,1739483439216,-500.0,0.00013698,2]
[352999922,1739483439225,-500.0,0.00013698,2]
[352999923,1739483439234,-500.0,0.00013698,2]
[352999924,1739483439245,-507.8111669,0.00013698,2]
[352999925,1739483439255,-500.0,0.00013698,2]
[352999926,1739483439264,-500.0,0.00013698,2]
[352999927,1739483439275,-500.0,0.00013698,2]
[352999928,1739483439285,-504.12616618,0.00013698,2]
[352999929,1739483439296,-500.0,0.00013698,2]
[352999930,1739483439306,-500.0,0.00013698,2]
[352999931,1739483439315,-500.0,0.00013698,2]
[352999932,1739483439324,-500.0,0.00013698,2]
[352999933,1739483439334,-500.0,0.00013698,2]
[352999934,1739483439344,-502.75991926,0.00013698,2]
[352999935,1739483439354,-500.0,0.00013698,2]
[352999936,1739483439364,-500.0,0.00013698,2]
[352999937,1739483439374,-500.0,0.00013698,2]
[352999938,1739483439383,-500.0,0.00013698,2]
[352999939,1739483439393,-500.0,0.00013698,2]
[352999940,1739483439402,-500.0,0.00013698,2]
[352999941,1739483439412,-500.0,0.00013698,2]
[352999942,1739483439421,-333.73388459,0.00013698,2]
[352999943,1739483439431,-500.0,0.00013698,2]
[352999944,1739483439441,-500.0,0.00013698,2]
[352999945,1739483439451,-502.01205356,0.00013698,2]
[352999946,1739483439461,-500.0,0.00013698,2]
[352999947,1739483439470,-500.0,0.00013698,2]
[352999949,1739483439480,-531.85326901,0.00013698,2]
[352999950,1739483439490,-500.0,0.00013698,2]
[352999952,1739483439499,-500.0,0.00013698,2]
[352999954,1739483439509,-500.0,0.00013698,2]
[352999956,1739483439519,-500.0,0.00013698,2]
[352999958,1739483439529,-500.0,0.00013698,2]
[352999959,1739483439539,-501.27409911,0.00013698,2]
[352999960,1739483439548,-500.0,0.00013698,2]
[352999961,1739483439558,-500.0,0.00013698,2]
[352999962,1739483439567,-500.0,0.00013698,2]
[352999963,1739483439577,-500.0,0.00013698,2]
[352999964,1739483439587,-500.0,0.00013698,2]
[352999965,1739483439596,-500.0,0.00013698,2]
[352999966,1739483439606,-500.0,0.00013698,2]
[352999967,1739483439616,-500.0,0.00013698,2]
[352999968,1739483439626,-500.0,0.00013698,2]
[352999969,1739483439636,-500.0,0.00013698,2]
[352999970,1739483439646,-500.0,0.00013698,2]
[352999971,1739483439656,-500.0,0.00013698,2]
[352999972,1739483439666,-500.0,0.00013698,2]
[352999973,1739483439675,-500.0,0.00013698,2]
[352999974,1739483439685,-500.0,0.00013698,2]
[352999975,1739483439695,-500.0,0.00013698,2]
[352999976,1739483439704,-500.0,0.00013698,2]
[352999977,1739483439714,-500.0,0.00013698,2]
[352999978,1739483439724,-500.0,0.00013698,2]
[352999979,1739483439733,-500.0,0.00013698,2]
[352999980,1739483439742,-205.05294211,0.00013698,2]
[352999981,1739483439752,-500.0,0.00013698,2]
[352999982,1739483439761,-500.0,0.00013698,2]
[352999983,1739483439771,-500.0,0.00013698,2]
[352999984,1739483439780,-500.0,0.00013698,2]
[352999985,1739483439790,-502.45778128,0.00013698,2]
[352999986,1739483439799,-500.0,0.00013698,2]
[352999987,1739483439808,-500.24012858,0.00013698,2]
[352999988,1739483439818,-500.0,0.00013698,2]
[352999989,1739483439827,-394.71676488,0.00013698,2]
[352999990,1739483439836,-565.26437193,0.00013698,2]
[352999991,1739483439845,-500.0,0.00013698,2]
[352999992,1739483439854,-500.0,0.00013698,2]
[352999993,1739483439864,-500.0,0.00013698,2]
[352999994,1739483439873,-500.0,0.00013698,2]
[352999995,1739483439883,-500.0,0.00013698,2]
[352999996,1739483439892,-500.0,0.00013698,2]
[352999997,1739483439901,-500.0,0.00013698,2]
[352999998,1739483439911,-500.0,0.00013698,2]
[352999999,1739483439920,-506.14088235,0.00013698,2]
[353000000,1739483439930,-500.0,0.00013698,2]
[353000001,1739483439939,-500.0,0.00013698,2]
[353000002,1739483439948,-500.0,0.00013698,2]
[353000003,1739483439957,-500.0,0.00013698,2]
[353000004,1739483439967,-500.0,0.00013698,2]
[353000005,1739483439976,-500.0,0.00013698,2]
[353000006,1739483439986,-597.20121801,0.00013698,2]
[353000007,1739483439995,-500.0,0.00013698,2]
[353000008,1739483440004,-501.96388742,0.00013698,2]
[353000009,1739483440014,-500.0,0.00013698,2]
[353000010,1739483440023,-500.0,0.00013698,2]
[353000011,1739483440033,-500.0,0.00013698,2]
[353000012,1739483440042,-500.0,0.00013698,2]
[353000013,1739483440052,-500.0,0.00013698,2]
[353000014,1739483440062,-500.0,0.00013698,2]
[353000015,1739483440071,-500.0,0.00013698,2]
[353000016,1739483440080,-500.40028626,0.00013698,2]
[353000017,1739483440089,-500.0,0.00013698,2]
[353000018,1739483440100,-500.0,0.00013698,2]
[353000019,1739483440109,-500.0,0.00013698,2]
[353000020,1739483440119,-500.0,0.00013698,2]
[353000021,1739483440128,-500.0,0.00013698,2]
[353000022,1739483440138,-400.95565635,0.00013698,2]
[353000023,1739483440147,-500.0,0.00013698,2]
[353000024,1739483440156,-500.0,0.00013698,2]
[353000025,1739483440166,-500.0,0.00013698,2]
[353000026,1739483440175,-500.0,0.00013698,2]
[353000027,1739483440185,-500.0,0.00013698,2]
[353000028,1739483440195,-500.0,0.00013698,2]
[353000029,1739483440207,-500.0,0.00013698,2]
[353000030,1739483440217,-500.0,0.00013698,2]
[353000031,1739483440226,-500.0,0.00013698,2]
[353000032,1739483440236,-500.0,0.00013698,2]
[353000033,1739483440247,-500.0,0.00013698,2]
[353000034,1739483440256,-500.0,0.00013698,2]
[353000035,1739483440266,-500.0,0.00013698,2]
[353000036,1739483440277,-500.0,0.00013698,2]
[353000037,1739483440287,-500.0,0.00013698,2]
[353000038,1739483440297,-500.0,0.00013698,2]
[353000039,1739483440306,-500.0,0.00013698,2]
[353000040,1739483440316,-500.0,0.00013698,2]
[353000041,1739483440325,-500.0,0.00013698,2]
[353000042,1739483440335,-500.0,0.00013698,2]
[353000043,1739483440344,-500.0,0.00013698,2]
[353000044,1739483440355,-500.0,0.00013698,2]
[353000045,1739483440364,-500.0,0.00013698,2]
[353000046,1739483440374,-500.0,0.00013698,2]
[353000047,1739483440384,-563.27794638,0.00013698,2]
[353000048,1739483440393,-500.0,0.00013698,2]
[353000049,1739483440403,-534.92617777,0.00013698,2]
[353000050,1739483440412,-500.0,0.00013698,2]
[353000051,1739483440422,-500.0,0.00013698,2]
[353000052,1739483440431,-500.0,0.00013698,2]
[353000053,1739483440441,-500.0,0.00013698,2]
[353000054,1739483440451,-500.0,0.00013698,2]
[353000055,1739483440460,-500.0,0.00013698,2]
[353000056,1739483440469,-500.0,0.00013698,2]
[353000057,1739483440478,-500.0,0.00013698,2]
[353000058,1739483440487,-500.0,0.00013698,2]
[353000059,1739483440497,-500.0,0.00013698,2]
[353000060,1739483440506,-500.0,0.00013698,2]
[353000061,1739483440515,-500.0,0.00013698,2]
[353000062,1739483440526,-549.03797377,0.00013698,2]
[353000063,1739483440536,-500.0,0.00013698,2]
[353000064,1739483440545,-500.0,0.00013698,2]
[353000065,1739483440555,-500.0,0.00013698,2]
[353000066,1739483440564,-500.0,0.00013698,2]
[353000067,1739483440574,-500.0,0.00013698,2]
[353000068,1739483440584,-505.09853762,0.00013698,2]
[353000069,1739483440593,-500.0,0.00013698,2]
[353000070,1739483440603,-500.0,0.00013698,2]
[353000071,1739483440613,-500.0,0.00013698,2]
[353000072,1739483440622,-500.0,0.00013698,2]
[353000073,1739483440632,-500.0,0.00013698,2]
[353000074,1739483440641,-500.0,0.00013698,2]
[353000075,1739483440651,-500.0,0.00013698,2]
[353000076,1739483440660,-500.0,0.00013698,2]
[353000077,1739483440670,-500.0,0.00013698,2]
[353000078,1739483440680,-500.0,0.00013698,2]
[353000079,1739483440690,-500.0,0.00013698,2]
[353000080,1739483440700,-500.0,0.00013698,2]
[353000081,1739483440710,-500.0,0.00013698,2]
[353000082,1739483440719,-500.0,0.00013698,2]
[353000083,1739483440730,-505.83065756,0.00013698,2]
[353000084,1739483440740,-500.0,0.00013698,2]
[353000085,1739483440749,-158.27815667,0.00013698,2]
[353000086,1739483440759,-500.0,0.00013698,2]
[353000087,1739483440769,-500.0,0.00013698,2]
[353000088,1739483440781,-500.0,0.00013698,2]
[353000089,1739483440790,-500.0,0.00013698,2]
[353000090,1739483440799,-500.0,0.00013698,2]
[353000091,1739483440809,-500.0,0.00013698,2]
[353000092,1739483440819,-500.0,0.00013698,2]
[353000093,1739483440828,-500.0,0.00013698,2]
[353000094,1739483440837,-500.0,0.00013698,2]
[353000095,1739483440847,-500.0,0.00013698,2]
[353000096,1739483440856,-1000.0,0.00013698,2]
[353000097,1739483440866,-500.0,0.00013698,2]
[353000098,1739483440875,-500.0,0.00013698,2]
[353000099,1739483440885,-330.85017429,0.00013698,2]
[353000100,1739483440893,-500.0,0.00013698,2]
[353000101,1739483440903,-500.0,0.00013698,2]
[353000102,1739483440912,-500.0,0.00013698,2]
[353000103,1739483440921,-500.0,0.00013698,2]
[353000104,1739483440931,-500.0,0.00013698,2]
[353000105,1739483440940,-500.0,0.00013698,2]
[353000106,1739483440950,-576.86667353,0.00013698,2]
[353000107,1739483440960,-151.0,0.00013698,2]
[353000108,1739483440970,-500.0,0.00013698,2]
[353000109,1739483440980,-500.0,0.00013698,2]
[353000110,1739483440990,-500.0,0.00013698,2]
[353000111,1739483440999,-500.0,0.00013698,2]
[353000112,1739483441009,-500.0,0.00013698,2]
[353000113,1739483441018,-151.0,0.00013698,2]
[353000114,1739483441028,-500.0,0.00013698,2]
[353000115,1739483441038,-500.0,0.00013698,2]
[353000116,1739483441049,-501.11033946,0.00013698,2]
[353000117,1739483441058,-500.0,0.00013698,2]
[353000118,1739483441067,-500.0,0.00013698,2]
[353000119,1739483441076,-500.0,0.00013698,2]
[353000120,1739483441086,-500.0,0.00013698,2]
[353000121,1739483441095,-500.0,0.00013698,2]
[353000122,1739483441104,-500.0,0.00013698,2]
[353000123,1739483441114,-500.0,0.00013698,2]
[353000124,1739483441123,-500.0,0.00013698,2]
[353000125,1739483441133,-500.0,0.00013698,2]
[353000126,1739483441142,-500.0,0.00013698,2]
[353000127,1739483441151,-500.0,0.00013698,2]
[353000128,1739483441161,-500.0,0.00013698,2]
[353000130,1739483441170,-500.0,0.00013698,2]
[353000131,1739483441180,-500.0,0.00013698,2]
[353000132,1739483441189,-500.0,0.00013698,2]
[353000133,1739483441201,-500.0,0.00013698,2]
[353000134,1739483441212,-500.0,0.00013698,2]
[353000135,1739483441221,-500.0,0.00013698,2]
[353000136,1739483441231,-500.0,0.00013698,2]
[353000137,1739483441240,-500.0,0.00013698,2]
[353000138,1739483441251,-500.0,0.00013698,2]
[353000139,1739483441260,-500.0,0.00013698,2]
[353000140,1739483441270,-500.0,0.00013698,2]
[353000141,1739483441280,-231.180894,0.00013698,2]
[353000142,1739483441289,-488.72,0.00013698,2]
[353000143,1739483441299,-500.0,0.00013698,2]
[353000144,1739483441309,-610.74086386,0.00013698,2]
[353000145,1739483441319,-500.0,0.00013698,2]
[353000146,1739483441328,-500.0,0.00013698,2]
[353000147,1739483441337,-500.0,0.00013698,2]
[353000148,1739483441347,-500.0,0.00013698,2]
[353000149,1739483441356,-500.0,0.00013698,2]
[353000151,1739483441365,-500.0,0.00013698,2]
[353000153,1739483441375,-500.0,0.00013698,2]
[353000154,1739483441384,-500.0,0.00013698,2]
[353000155,1739483441393,-500.0,0.00013698,2]